[Event "LJ Slovak Open 2022"]
[Site "Liptovsky Jan"]
[Date "2022.06.24"]
[Round "2.14"]
[White "Hurtuk, Radovan"]
[Black "Smetana, Peter"]
[Result "1-0"]
[ECO "B24"]
[WhiteElo "2057"]
[BlackElo "1740"]
[Annotator "TA"]
[PlyCount "86"]
[EventDate "2022.06.23"]
[EventType "swiss"]
[EventCountry "SVK"]
[SourceTitle "playchess.com"]
[Source "ChessBase"]
[SourceQuality "1"]
[TimeControl "3600+30"]

{[%evp 15,86,16,16,-5,6,-10,-9,-8,-16,-18,-14,-14,0,-28,3,24,22,9,19,0,91,38,156,136,152,154,194,96,102,97,96,51,57,65,79,0,28,0,17,-11,68,40,47,38,158,163,158,145,138,120,147,52,63,49,76,24,131,0,49,-12,0,0,-10,-79,-67,-80,-87,-83,-66,-68,-20,-313,772]} 1. g3 {[%emt 0:00:09]} c5 {[%emt 0:01:54]} 2. Bg2 {[%emt 0:00:01]} Nc6 {[%emt 0:01:05]} 3. f4 {[%emt 0:00:45]} d6 {[%emt 0:01:02]} 4. Nf3 {[%emt 0:00:14]} Nf6 {[%emt 0:01:40]} 5. O-O {[%emt 0:00:13]} e6 {[%emt 0:07:36]} 6. d3 {[%emt 0:00:04]} Be7 {[%emt 0:00:58]} 7. e4 {[%emt 0:01:10]} Qc7 {[%emt 0:02:38]} 8. Nc3 {[%emt 0:00:07]} a6 {[%emt 0:01:52]} 9. Be3 {[%emt 0:01:03] B24: Closed Sicilian: 3 g3 sidelines.} O-O {[%emt 0:03:22]} 10. h3 {[%emt 0:00:15]} d5 {[%emt 0:01:10] [#] White must now prevent ...d4.} 11. Bf2 {[%emt 0:04:26] The position is equal.} b5 {[%emt 0:03:06]} 12. e5 {[%emt 0:00:05]} Nd7 {[%emt 0:01:41] [#]} 13. h4 $146 {[%emt 0:01:36]} ({Predecessor:} 13. a3 Bb7 14. Qd2 Rfc8 15. Ne2 Nb6 16. g4 b4 17. axb4 cxb4 18. Ng3 Bf8 19. Kh1 {1-0 (26) Daemering,K (1949)-Ley,S (1743) Braunfels 2015}) 13... f6 {[%emt 0:05:25]} 14. Bh3 {[%emt 0:01:51]} Nd8 {[%emt 0:04:16][%cal Rf6e5]} 15. exf6 {[%emt 0:09:58]} Nxf6 {[%emt 0:01:19]} 16. Re1 {[%emt 0:01:13]} d4 {[%emt 0:01:48]} 17. Ne4 {[%emt 0:01:48]} Nd5 {[%emt 0:01:29]} (17... Nxe4 $11 18. Rxe4 Bb7) 18. Neg5 {[%emt 0:03:37]} (18. Bg2 $16) 18... Rf6 {[%emt 0:03:43]} (18... Bxg5 $14 19. Nxg5 (19. hxg5 e5 $11) 19... h6) 19. Ne5 {[%emt 0:00:25]} h6 {[%emt 0:01:31]} 20. Ne4 {[%emt 0:00:41]} Rf8 {[%emt 0:00:38] [#]} 21. Bg4 {[%emt 0:05:25]} (21. Ng6 $1 $18 {has better winning chances.}) 21... Nf6 $16 {[%emt 0:01:12]} 22. Bf3 {[%emt 0:00:39] Threatens to win with Nxf6+. White is much more active. The black rooks are badly placed.} (22. Ng6 {looks sharper.} Re8 23. a4 Bb7 24. Bf3) 22... Nxe4 {[%emt 0:01:03]} 23. dxe4 {[%emt 0:01:02]} Nf7 {[%emt 0:02:17]} 24. Ng6 {[%emt 0:00:36]} Rd8 {[%emt 0:00:49]} 25. g4 {[%emt 0:01:37]} ({White should try} 25. a4 $16) 25... e5 {[%emt 0:01:20]} 26. f5 {[%emt 0:00:24]} (26. Nxe7+ Qxe7 27. Qd2 Bb7 $15) (26. a4 $5 {[%cal Ra4b5]}) 26... Bf6 {[%emt 0:01:25]} 27. Kg2 {[%emt 0:00:34]} Nh8 {[%emt 0:02:36]} (27... Bb7 $11) 28. Nxh8 $1 $14 {[%emt 0:00:54]} Kxh8 {[%emt 0:00:14]} 29. Rh1 {[%emt 0:00:06]} Qf7 {[%emt 0:01:17]} (29... Bb7 $14) 30. g5 $1 $16 {[%emt 0:00:26]} Be7 {[%emt 0:00:22]} 31. Bh5 {[%emt 0:00:44]} Qf8 {[%emt 0:01:28]} 32. Bg3 {[%emt 0:00:57]} Bb7 {[%emt 0:03:25]} 33. Bf3 {[%emt 0:00:19]} (33. Qf3 $16) 33... Bd6 {[%emt 0:01:10]} 34. Qd2 {[%emt 0:00:45]} c4 {[%emt 0:01:44]} 35. Rag1 {[%emt 0:01:13]} (35. gxh6 $16 gxh6 36. Kh3) 35... Bb4 {[%emt 0:02:24]} (35... Rac8 $1 $11) 36. Qd1 {[%emt 0:00:53]} (36. Qc1 $16) 36... Qe7 {[%emt 0:00:48]} (36... d3 $1 $11 37. c3 (37. Bxe5 $2 dxc2 38. Qc1 Rd2+ 39. Kh3 Qe7 $19) 37... Bc5 38. gxh6 Bxg1 39. Rxg1 (39. Bxe5 Qe7 $15) 39... Qf6 40. hxg7+ Kxg7) 37. Kh2 {[%emt 0:01:36]} (37. gxh6 $14 gxh6 38. Bf2 (38. a3 Bc5 $11)) 37... d3 $11 {[%emt 0:01:57] ...dxc2 is the strong threat.} ({Don't take} 37... hxg5 38. hxg5 Kg8 39. g6 $16) 38. c3 {[%emt 0:01:30]} Bc5 {[%emt 0:00:13]} 39. Qd2 {[%emt 0:00:53]} Bxg1+ $17 {[%emt 0:01:28]} 40. Rxg1 {[%emt 0:00:06]} Rd6 {[%emt 0:00:49]} 41. Bf2 {[%emt 0:01:07]} Rc8 {[%emt 0:00:50] Inhibits Bc5.} 42. Be3 {[%emt 0:01:01]} Rcc6 {[%emt 0:00:57]} (42... hxg5 $15 43. hxg5 g6) 43. gxh6 $2 {[%emt 0:09:03][%mdl 8192]} (43. Qf2 $11) 43... Qf7 $4 {[%emt 0:02:22][%mdl 8192] Weighted Error Value: White=0.42/Black=0.36} ({Weaker is} 43... gxh6 44. Qf2 $15) (43... Qxh4+ $19 44. Kg2 Rxh6 45. Bxh6 Rxh6) 1-0

[Event "LJ Slovak Open 2022"]
[Site "Liptovsky Jan"]
[Date "2022.06.24"]
[Round "2.15"]
[White "Verba, Vladimir"]
[Black "Ihnat, Marek"]
[Result "0-1"]
[ECO "B25"]
[WhiteElo "1786"]
[BlackElo "2045"]
[Annotator "RC"]
[PlyCount "84"]
[EventDate "2022.06.23"]
[EventType "swiss"]
[EventCountry "SVK"]
[SourceTitle "playchess.com"]
[Source "ChessBase"]
[SourceQuality "1"]
[TimeControl "3600+30"]

1. e4 {[%emt 0:00:07]} c5 {[%emt 0:00:07]} 2. Nc3 {[%emt 0:00:24]} Nc6 {[%emt 0:00:01]} 3. g3 {[%emt 0:00:11]} g6 {[%emt 0:00:06]} 4. Bg2 {[%emt 0:00:09]} Bg7 {[%emt 0:00:03]} 5. f4 {[%emt 0:00:11]} d6 {[%emt 0:00:06]} 6. d3 {[%emt 0:00:14]} e6 {[%emt 0:00:05]} 7. Nf3 {[%emt 0:00:29]} Nge7 {[%emt 0:00:08]} 8. O-O {[%emt 0:00:10]} O-O {[%emt 0:00:06]} 9. Be3 {[%emt 0:00:08]} Rb8 {[%emt 0:00:06]} 10. Bf2 {[%emt 0:00:43]} b5 {[%emt 0:00:06]} 11. Qd2 {[%emt 0:05:33]} a5 {[%emt 0:00:05]} 12. Rae1 {[%emt 0:01:02]} b4 {[%emt 0:00:06]} 13. Nd1 {[%emt 0:03:05]} Nd4 {[%emt 0:00:01]} 14. Nxd4 {[%emt 0:00:30]} cxd4 {[%emt 0:00:56]} 15. b3 {[%emt 0:01:57]} Qc7 {[%emt 0:03:21]} 16. Nb2 {[%emt 0:02:48]} Bb7 {[%emt 0:09:16]} 17. g4 {[%emt 0:01:41]} Rbc8 {[%emt 0:09:04]} 18. Re2 {[%emt 0:01:19]} f5 {[%emt 0:09:28]} 19. h3 {[%emt 0:05:06]} d5 {[%emt 0:08:34]} 20. exf5 {[%emt 0:03:57]} exf5 {[%emt 0:02:47]} 21. Rfe1 {[%emt 0:02:00]} Rf7 {[%emt 0:01:56]} 22. Bh4 {[%emt 0:00:29]} Bf8 {[%emt 0:01:22]} 23. Bf3 {[%emt 0:06:27]} fxg4 {[%emt 0:01:13]} 24. Bxg4 {[%emt 0:03:07]} Nf5 {[%emt 0:00:41]} 25. Bf2 {[%emt 0:02:56]} Bh6 {[%emt 0:01:16]} 26. Re8+ {[%emt 0:05:14]} Rf8 {[%emt 0:01:35]} 27. Rxf8+ {[%emt 0:10:57]} Rxf8 {[%emt 0:01:58]} 28. Qe2 {[%emt 0:05:06]} Qxf4 {[%emt 0:03:11]} 29. Qe6+ {[%emt 0:00:44]} Kg7 {[%emt 0:05:04]} 30. Qe5+ {[%emt 0:02:06]} Qxe5 {[%emt 0:00:12]} 31. Rxe5 {[%emt 0:00:07]} Kf6 {[%emt 0:00:26]} 32. Re2 {[%emt 0:01:59]} Ne3 {[%emt 0:00:28]} 33. Na4 {[%emt 0:02:08]} Rf7 {[%emt 0:06:10]} 34. Nc5 {[%emt 0:00:46]} Rc7 {[%emt 0:00:59]} 35. Nxb7 {[%emt 0:01:47]} Rxb7 {[%emt 0:00:01]} 36. Bh4+ {[%emt 0:00:13]} Bg5 {[%emt 0:02:30]} 37. Rf2+ {[%emt 0:01:46]} Nf5 {[%emt 0:00:05]} 38. Bxg5+ {[%emt 0:00:52]} Kxg5 {[%emt 0:00:03]} 39. Rg2 {[%emt 0:00:58]} Ne3 {[%emt 0:01:54]} 40. Bc8+ {[%emt 0:00:17]} Nxg2 {[%emt 0:00:02]} 41. Bxb7 {[%emt 0:00:16]} Ne3 {[%emt 0:00:08]} 42. Kh2 {[%emt 0:00:33]} Kf4 {[%emt 0:00:18]} 0-1

[Event "LJ Slovak Open 2022"]
[Site "Liptovsky Jan"]
[Date "2022.06.24"]
[Round "2.16"]
[White "Macka, Oto"]
[Black "Szaszak, Robert"]
[Result "1-0"]
[ECO "D06"]
[WhiteElo "2026"]
[BlackElo "1717"]
[Annotator "RC"]
[PlyCount "99"]
[EventDate "2022.06.23"]
[EventType "swiss"]
[EventCountry "SVK"]
[SourceTitle "playchess.com"]
[Source "ChessBase"]
[SourceQuality "1"]
[TimeControl "3600+30"]

1. d4 {[%emt 0:00:03]} d5 {[%emt 0:00:20]} 2. c4 {[%emt 0:00:03]} Nf6 {[%emt 0:00:09]} 3. cxd5 {[%emt 0:00:09]} Nxd5 {[%emt 0:00:27]} 4. e4 {[%emt 0:00:10]} Nf6 {[%emt 0:00:17]} 5. Nc3 {[%emt 0:00:15]} e6 {[%emt 0:00:19]} 6. Nf3 {[%emt 0:00:34]} Be7 {[%emt 0:00:34]} 7. Bd3 {[%emt 0:01:12]} c6 {[%emt 0:00:28]} 8. O-O {[%emt 0:01:51]} h6 {[%emt 0:03:00]} 9. Qe2 {[%emt 0:01:30]} Bb4 {[%emt 0:01:32]} 10. a3 {[%emt 0:09:51]} Bxc3 {[%emt 0:01:14]} 11. bxc3 {[%emt 0:00:04]} Qa5 {[%emt 0:01:06]} 12. Bd2 {[%emt 0:02:12]} Qh5 {[%emt 0:00:19]} 13. c4 {[%emt 0:00:54]} Nh7 {[%emt 0:01:16]} 14. Qe3 {[%emt 0:11:59]} Ng5 {[%emt 0:02:56]} 15. Ne5 {[%emt 0:02:39]} f6 {[%emt 0:01:05]} 16. Be2 {[%emt 0:01:49]} Nh3+ {[%emt 0:00:17]} 17. gxh3 {[%emt 0:00:51]} Qg5+ {[%emt 0:00:08]} 18. Qxg5 {[%emt 0:00:07]} hxg5 {[%emt 0:00:07]} 19. Nd3 {[%emt 0:02:12]} Rxh3 {[%emt 0:00:12]} 20. f4 {[%emt 0:01:06]} gxf4 {[%emt 0:01:35]} 21. Nxf4 {[%emt 0:01:22]} Rh4 {[%emt 0:00:59]} 22. Bh5+ {[%emt 0:00:27]} Kd8 {[%emt 0:00:23]} 23. Be1 {[%emt 0:00:16]} Rxf4 {[%emt 0:01:25]} 24. Rxf4 {[%emt 0:00:14]} Ke7 {[%emt 0:00:33]} 25. e5 {[%emt 0:01:17]} f5 {[%emt 0:00:10]} 26. Bh4+ {[%emt 0:00:38]} Kf8 {[%emt 0:00:51]} 27. d5 {[%emt 0:00:04]} cxd5 {[%emt 0:00:25]} 28. cxd5 {[%emt 0:00:04]} exd5 {[%emt 0:00:15]} 29. Bg6 {[%emt 0:01:22]} Nc6 {[%emt 0:00:22]} 30. Bxf5 {[%emt 0:00:22]} Bxf5 {[%emt 0:00:21]} 31. Rxf5+ {[%emt 0:00:04]} Kg8 {[%emt 0:00:06]} 32. e6 {[%emt 0:00:22]} Nd4 {[%emt 0:00:08]} 33. Rxd5 {[%emt 0:02:16]} Nf3+ {[%emt 0:01:29]} 34. Kh1 {[%emt 0:00:03]} Nxh4 {[%emt 0:00:06]} 35. Rad1 {[%emt 0:00:15]} Rf8 {[%emt 0:00:39]} 36. Rd8 {[%emt 0:00:33]} Ng6 {[%emt 0:01:06]} 37. Rxf8+ {[%emt 0:00:11]} Kxf8 {[%emt 0:00:07]} 38. Rd7 {[%emt 0:00:05]} Nf4 {[%emt 0:00:13]} 39. e7+ {[%emt 0:00:25]} Ke8 {[%emt 0:00:24]} 40. Rxb7 {[%emt 0:00:04]} a6 {[%emt 0:00:41]} 41. Ra7 {[%emt 0:00:09]} g5 {[%emt 0:00:18]} 42. Kg1 {[%emt 0:00:08]} Nd3 {[%emt 0:01:25]} 43. Kg2 {[%emt 0:00:18]} Nf4+ {[%emt 0:00:48]} 44. Kg3 {[%emt 0:00:05]} Nd5 {[%emt 0:01:23]} 45. Kg4 {[%emt 0:01:55]} Nxe7 {[%emt 0:00:07]} 46. Rxe7+ {[%emt 0:00:10]} Kxe7 {[%emt 0:00:12]} 47. Kxg5 {[%emt 0:00:03]} Kf7 {[%emt 0:00:12]} 48. Kf5 {[%emt 0:00:04]} a5 {[%emt 0:00:21]} 49. a4 {[%emt 0:00:03]} Kg7 {[%emt 0:00:10]} 50. Ke5 {[%emt 0:00:03]} 1-0

[Event "LJ Slovak Open 2022"]
[Site "Liptovsky Jan"]
[Date "2022.06.24"]
[Round "2.17"]
[White "Stric, Dusan"]
[Black "Volek, Jan"]
[Result "0-1"]
[ECO "D71"]
[WhiteElo "2021"]
[BlackElo "1687"]
[Annotator "ChessBase"]
[PlyCount "144"]
[EventDate "2022.06.23"]
[EventType "swiss"]
[EventCountry "SVK"]
[SourceTitle "playchess.com"]
[Source "ChessBase"]
[SourceQuality "1"]
[TimeControl "3600+30"]

1. c4 {[%emt 0:00:03]} g6 {[%emt 0:00:16]} 2. Nc3 {[%emt 0:00:02]} Bg7 {[%emt 0:00:18]} 3. g3 {[%emt 0:00:02]} Nf6 {[%emt 0:00:38]} 4. Bg2 {[%emt 0:00:02]} c6 {[%emt 0:00:19]} 5. e3 {[%emt 0:00:04]} O-O {[%emt 0:01:02]} 6. Nge2 {[%emt 0:00:30]} d5 {[%emt 0:01:34]} 7. cxd5 {[%emt 0:00:00]} Nxd5 {[%emt 0:00:25]} 8. O-O {[%emt 0:00:11]} Nxc3 {[%emt 0:00:07]} 9. bxc3 {[%emt 0:01:42]} Nd7 {[%emt 0:00:30]} 10. d4 {[%emt 0:01:30]} e5 {[%emt 0:00:41]} 11. Bb2 {[%emt 0:00:27]} Nb6 {[%emt 0:00:37]} 12. Qc2 {[%emt 0:03:39]} exd4 {[%emt 0:01:08]} 13. cxd4 {[%emt 0:00:50]} Be6 {[%emt 0:00:49]} 14. Nf4 {[%emt 0:00:34]} Bf5 {[%emt 0:01:30]} 15. e4 {[%emt 0:03:03]} Bc8 {[%emt 0:00:15]} 16. Rad1 {[%emt 0:00:36]} Re8 {[%emt 0:02:59]} 17. h3 {[%emt 0:07:57]} Qe7 {[%emt 0:01:21]} 18. Rfe1 {[%emt 0:01:23]} Qb4 {[%emt 0:01:18]} 19. Bf1 {[%emt 0:15:44]} Na4 {[%emt 0:05:05]} 20. Ba1 {[%emt 0:04:24]} Nb6 {[%emt 0:00:54]} 21. Kg2 {[%emt 0:02:25]} Qa4 {[%emt 0:03:07]} 22. Qxa4 {[%emt 0:04:11]} Nxa4 {[%emt 0:00:15]} 23. Bc4 {[%emt 0:00:07]} Nb6 {[%emt 0:00:19]} 24. Bb3 {[%emt 0:00:13]} Nd7 {[%emt 0:01:19]} 25. d5 {[%emt 0:02:16]} Bxa1 {[%emt 0:00:38]} 26. Rxa1 {[%emt 0:00:02]} Nc5 {[%emt 0:00:28]} 27. Bc2 {[%emt 0:01:28]} Bd7 {[%emt 0:01:52]} 28. f3 {[%emt 0:00:40]} Rac8 {[%emt 0:01:30]} 29. Rab1 {[%emt 0:01:23]} b6 {[%emt 0:00:18]} 30. Red1 {[%emt 0:05:22]} Kg7 {[%emt 0:00:54]} 31. a4 {[%emt 0:02:16]} cxd5 {[%emt 0:01:00]} 32. a5 {[%emt 0:04:51]} Nb7 {[%emt 0:01:21]} 33. Bb3 {[%emt 0:00:47]} Nxa5 {[%emt 0:01:14]} 34. Bxd5 {[%emt 0:00:05]} Rc2+ {[%emt 0:01:05]} 35. Kg1 {[%emt 0:00:04]} Bc6 {[%emt 0:01:21]} 36. Rd3 {[%emt 0:01:34]} Bxd5 {[%emt 0:01:31]} 37. Nxd5 {[%emt 0:00:43]} Rec8 {[%emt 0:00:53]} 38. Rbd1 {[%emt 0:00:10]} Rc1 {[%emt 0:00:11]} 39. Ne7 {[%emt 0:00:19]} Rxd1+ {[%emt 0:00:31]} 40. Rxd1 {[%emt 0:00:03]} Rc7 {[%emt 0:01:08]} 41. Nd5 {[%emt 0:00:02]} Rc2 {[%emt 0:00:49]} 42. Ne3 {[%emt 0:00:26]} Rc3 {[%emt 0:01:10]} 43. Kf2 {[%emt 0:00:05]} Nc4 {[%emt 0:00:52]} 44. Nd5 {[%emt 0:00:52]} Rc2+ {[%emt 0:00:55]} 45. Kg1 {[%emt 0:00:26]} b5 {[%emt 0:02:17]} 46. Nc7 {[%emt 0:01:40]} b4 {[%emt 0:00:33]} 47. Rd7 {[%emt 0:02:53]} Ne5 {[%emt 0:00:57]} 48. Re7 {[%emt 0:00:08]} Kf6 {[%emt 0:00:11]} 49. Nd5+ {[%emt 0:00:30]} Kg7 {[%emt 0:00:23]} 50. Rxe5 {[%emt 0:00:00]} b3 {[%emt 0:01:40]} 51. Ne3 {[%emt 0:03:53]} b2 {[%emt 0:01:36]} 52. Rb5 {[%emt 0:01:00]} Rc1+ {[%emt 0:00:12]} 53. Kf2 {[%emt 0:00:02]} b1=Q {[%emt 0:00:29]} 54. Rxb1 {[%emt 0:00:03]} Rxb1 {[%emt 0:00:20]} 55. Nd5 {[%emt 0:00:03]} a5 {[%emt 0:00:24]} 56. Ke3 {[%emt 0:00:20]} a4 {[%emt 0:00:46]} 57. Nc3 {[%emt 0:00:02]} Rb3 {[%emt 0:00:28]} 58. Kd2 {[%emt 0:00:06]} Rb2+ {[%emt 0:00:44]} 59. Kc1 {[%emt 0:00:15]} Rg2 {[%emt 0:00:15]} 60. Nxa4 {[%emt 0:00:20]} Rxg3 {[%emt 0:00:11]} 61. Kd2 {[%emt 0:00:26]} Rxf3 {[%emt 0:00:34]} 62. h4 {[%emt 0:00:06]} Rh3 {[%emt 0:00:32]} 63. Nc5 {[%emt 0:00:27]} Rxh4 {[%emt 0:00:17]} 64. Ke3 {[%emt 0:00:01]} Rh5 {[%emt 0:00:47]} 65. Nd7 {[%emt 0:00:10]} Ra5 {[%emt 0:00:19]} 66. Kf4 {[%emt 0:00:02]} h5 {[%emt 0:01:18]} 67. Nb6 {[%emt 0:00:52]} g5+ {[%emt 0:01:10]} 68. Kf3 {[%emt 0:00:02]} Ra3+ {[%emt 0:00:26]} 69. Kf2 {[%emt 0:00:02]} h4 {[%emt 0:00:50]} 70. Nc4 {[%emt 0:00:06]} Rc3 {[%emt 0:00:47]} 71. Ne5 {[%emt 0:00:02]} f6 {[%emt 0:01:02]} 72. Ng4 {[%emt 0:00:07]} Kg6 {[%emt 0:01:03]} 0-1

[Event "LJ Slovak Open 2022"]
[Site "Liptovsky Jan"]
[Date "2022.06.24"]
[Round "2.18"]
[White "Recky, Norbert"]
[Black "Ambrozi, Peter"]
[Result "0-1"]
[ECO "B29"]
[WhiteElo "1755"]
[BlackElo "1994"]
[Annotator "RC"]
[PlyCount "54"]
[EventDate "2022.06.23"]
[EventType "swiss"]
[EventCountry "SVK"]
[SourceTitle "playchess.com"]
[Source "ChessBase"]
[SourceQuality "1"]
[TimeControl "3600+30"]

1. e4 {[%emt 0:00:03]} c5 {[%emt 0:00:09]} 2. Nf3 {[%emt 0:00:06]} Nf6 {[%emt 0:00:36]} 3. e5 {[%emt 0:01:28]} Nd5 {[%emt 0:00:07]} 4. Nc3 {[%emt 0:00:08]} e6 {[%emt 0:01:22]} 5. d4 {[%emt 0:01:14]} Nc6 {[%emt 0:04:01]} 6. Nxd5 {[%emt 0:01:12]} exd5 {[%emt 0:00:07]} 7. dxc5 {[%emt 0:00:07]} Bxc5 {[%emt 0:00:15]} 8. Bd3 {[%emt 0:02:41]} d6 {[%emt 0:03:38]} 9. exd6 {[%emt 0:05:17]} Qxd6 {[%emt 0:00:36]} 10. O-O {[%emt 0:03:56]} O-O {[%emt 0:02:52]} 11. Ng5 {[%emt 0:05:58]} h6 {[%emt 0:02:50]} 12. Qh5 {[%emt 0:02:12]} f5 {[%emt 0:13:13]} 13. Nh3 {[%emt 0:01:50]} Nb4 {[%emt 0:01:59]} 14. Bf4 {[%emt 0:02:43]} Qf6 {[%emt 0:00:42]} 15. Rae1 {[%emt 0:01:57]} Nxd3 {[%emt 0:01:35]} 16. cxd3 {[%emt 0:00:08]} Bd4 {[%emt 0:02:46]} 17. b3 {[%emt 0:02:03]} Bd7 {[%emt 0:01:40]} 18. Re2 {[%emt 0:03:07]} Bb5 {[%emt 0:02:30]} 19. Qf3 {[%emt 0:00:27]} Bc6 {[%emt 0:00:30]} 20. Rfe1 {[%emt 0:01:31]} Qf7 {[%emt 0:06:28]} 21. Re7 {[%emt 0:02:26]} Qg6 {[%emt 0:01:00]} 22. R1e6 {[%emt 0:01:23]} Qg4 {[%emt 0:00:36]} 23. Kf1 {[%emt 0:05:59]} Bf6 {[%emt 0:00:57]} 24. Rc7 {[%emt 0:01:51]} Qxf3 {[%emt 0:00:32]} 25. gxf3 {[%emt 0:00:19]} Rae8 {[%emt 0:01:05]} 26. Rxe8 {[%emt 0:02:54]} Rxe8 {[%emt 0:00:09]} 27. Bd2 {[%emt 0:00:27]} Be5 {[%emt 0:00:32]} 0-1

[Event "LJ Slovak Open 2022"]
[Site "Liptovsky Jan"]
[Date "2022.06.24"]
[Round "2.19"]
[White "Vilimek, Vit"]
[Black "Staron, Ladislav"]
[Result "1-0"]
[ECO "B20"]
[WhiteElo "1972"]
[BlackElo "1695"]
[Annotator "RC"]
[PlyCount "59"]
[EventDate "2022.06.23"]
[EventType "swiss"]
[EventCountry "SVK"]
[SourceTitle "playchess.com"]
[Source "ChessBase"]
[SourceQuality "1"]
[TimeControl "3600+30"]

1. e4 {[%emt 0:00:10]} c5 {[%emt 0:00:37]} 2. b4 {[%emt 0:00:20]} d6 {[%emt 0:01:33]} 3. bxc5 {[%emt 0:01:14]} dxc5 {[%emt 0:00:13]} 4. d3 {[%emt 0:00:49]} e6 {[%emt 0:01:32]} 5. f4 {[%emt 0:01:41]} Nc6 {[%emt 0:00:23]} 6. Be3 {[%emt 0:00:27]} b6 {[%emt 0:05:00]} 7. Nf3 {[%emt 0:04:51]} g6 {[%emt 0:00:56]} 8. d4 {[%emt 0:04:37]} Bg7 {[%emt 0:03:40]} 9. c3 {[%emt 0:02:21]} cxd4 {[%emt 0:02:06]} 10. cxd4 {[%emt 0:05:26]} Nge7 {[%emt 0:00:18]} 11. Nc3 {[%emt 0:03:13]} O-O {[%emt 0:00:15]} 12. Rc1 {[%emt 0:00:42]} Bb7 {[%emt 0:00:51]} 13. Be2 {[%emt 0:04:21]} Rc8 {[%emt 0:00:23]} 14. O-O {[%emt 0:00:21]} Rc7 {[%emt 0:06:36]} 15. Qa4 {[%emt 0:05:03]} Rd7 {[%emt 0:08:25]} 16. Rfd1 {[%emt 0:00:55]} Qa8 {[%emt 0:00:22]} 17. Ne5 {[%emt 0:12:35]} Bxe5 {[%emt 0:00:39]} 18. fxe5 {[%emt 0:01:17]} Rfd8 {[%emt 0:00:51]} 19. Bf3 {[%emt 0:03:21]} a6 {[%emt 0:06:56]} 20. Ne2 {[%emt 0:05:10]} b5 {[%emt 0:02:44]} 21. Qa3 {[%emt 0:00:40]} Nxe5 {[%emt 0:00:50]} 22. Bg5 {[%emt 0:04:11]} Nxf3+ {[%emt 0:02:11]} 23. gxf3 {[%emt 0:00:25]} Re8 {[%emt 0:00:28]} 24. Qe3 {[%emt 0:01:38]} f5 {[%emt 0:01:37]} 25. Nf4 {[%emt 0:03:46]} Kf7 {[%emt 0:04:55]} 26. Nd3 {[%emt 0:01:00]} Rd6 {[%emt 0:05:43]} 27. Ne5+ {[%emt 0:00:15]} Kg8 {[%emt 0:00:29]} 28. Rc7 {[%emt 0:01:09]} Nc6 {[%emt 0:01:58]} 29. Nf7 {[%emt 0:00:10]} Qb8 {[%emt 0:02:50]} 30. Nh6+ {[%emt 0:00:06]} 1-0

[Event "LJ Slovak Open 2022"]
[Site "Liptovsky Jan"]
[Date "2022.06.24"]
[Round "2.20"]
[White "Kulich, Filip"]
[Black "Giertli, Vladimir"]
[Result "1/2-1/2"]
[ECO "B07"]
[WhiteElo "1682"]
[BlackElo "1988"]
[Annotator "RC"]
[PlyCount "72"]
[EventDate "2022.06.23"]
[EventType "swiss"]
[EventCountry "SVK"]
[SourceTitle "playchess.com"]
[Source "ChessBase"]
[SourceQuality "1"]
[TimeControl "3600+30"]

1. e4 {[%emt 0:00:21]} d6 {[%emt 0:00:26]} 2. d4 {[%emt 0:00:16]} Nf6 {[%emt 0:00:11]} 3. Nc3 {[%emt 0:00:33]} Nbd7 {[%emt 0:00:37]} 4. f4 {[%emt 0:00:35]} e5 {[%emt 0:01:50]} 5. Nf3 {[%emt 0:00:59]} exd4 {[%emt 0:02:44]} 6. Qxd4 {[%emt 0:00:49]} c6 {[%emt 0:00:33]} 7. Be3 {[%emt 0:00:50]} d5 {[%emt 0:01:24]} 8. e5 {[%emt 0:01:43]} Ng4 {[%emt 0:00:38]} 9. Bg1 {[%emt 0:01:11]} Bc5 {[%emt 0:00:45]} 10. Qd2 {[%emt 0:00:18]} a5 {[%emt 0:06:30]} 11. h3 {[%emt 0:01:53]} Nh6 {[%emt 0:03:04]} 12. a4 {[%emt 0:02:57]} Nf5 {[%emt 0:02:09]} 13. Bf2 {[%emt 0:03:31]} Qb6 {[%emt 0:01:19]} 14. Bd3 {[%emt 0:07:35]} Ne3 {[%emt 0:04:26]} 15. Ke2 {[%emt 0:05:07]} Nc4 {[%emt 0:03:58]} 16. Bxc4 {[%emt 0:00:56]} dxc4 {[%emt 0:05:12]} 17. Ne4 {[%emt 0:01:35]} Bxf2 {[%emt 0:02:07]} 18. Nxf2 {[%emt 0:01:48]} O-O {[%emt 0:06:06]} 19. Qd4 {[%emt 0:01:50]} Qa6 {[%emt 0:03:42]} 20. c3 {[%emt 0:01:18]} Re8 {[%emt 0:01:41]} 21. Rhe1 {[%emt 0:02:29]} Nf8 {[%emt 0:00:52]} 22. g4 {[%emt 0:02:19]} Be6 {[%emt 0:00:37]} 23. f5 {[%emt 0:01:31]} Rad8 {[%emt 0:01:19]} 24. Qf4 {[%emt 0:00:22]} Bd5 {[%emt 0:01:04]} 25. Kf1 {[%emt 0:03:24]} Qb6 {[%emt 0:00:49]} 26. Re2 {[%emt 0:01:23]} Qc7 {[%emt 0:01:01]} 27. Ne4 {[%emt 0:05:17]} f6 {[%emt 0:00:47]} 28. Nd6 {[%emt 0:06:08]} Re7 {[%emt 0:00:58]} 29. Nxc4 {[%emt 0:01:41]} Nd7 {[%emt 0:02:49]} 30. Rae1 {[%emt 0:03:11]} b5 {[%emt 0:02:20]} 31. axb5 {[%emt 0:02:18]} cxb5 {[%emt 0:00:01]} 32. Ncd2 {[%emt 0:00:31]} Rde8 {[%emt 0:02:25]} 33. Qd4 {[%emt 0:00:46]} Qb7 {[%emt 0:01:54]} 34. exf6 {[%emt 0:01:44]} Rxe2 {[%emt 0:04:03]} 35. Rxe2 {[%emt 0:00:12]} Rxe2 {[%emt 0:00:41]} 36. Kxe2 {[%emt 0:00:17]} gxf6 {[%emt 0:01:23]} 1/2-1/2

[Event "LJ Slovak Open 2022"]
[Site "Liptovsky Jan"]
[Date "2022.06.24"]
[Round "2.21"]
[White "Bakalar, Jan"]
[Black "Babjak, Samuel"]
[Result "1/2-1/2"]
[ECO "B45"]
[WhiteElo "1916"]
[BlackElo "1577"]
[Annotator "RC"]
[PlyCount "43"]
[EventDate "2022.06.23"]
[EventType "swiss"]
[EventCountry "SVK"]
[SourceTitle "playchess.com"]
[Source "ChessBase"]
[SourceQuality "1"]
[TimeControl "3600+30"]

1. e4 {[%emt 0:00:36]} c5 {[%emt 0:00:05]} 2. Nf3 {[%emt 0:00:14]} e6 {[%emt 0:02:39]} 3. d4 {[%emt 0:00:38]} cxd4 {[%emt 0:00:05]} 4. Nxd4 {[%emt 0:00:07]} Nf6 {[%emt 0:00:03]} 5. Nc3 {[%emt 0:00:23]} Nc6 {[%emt 0:00:05]} 6. Be2 {[%emt 0:04:21]} Bb4 {[%emt 0:00:14]} 7. Bf3 {[%emt 0:02:14]} d5 {[%emt 0:04:22]} 8. exd5 {[%emt 0:02:44]} Nxd5 {[%emt 0:00:10]} 9. Nxc6 {[%emt 0:20:32]} bxc6 {[%emt 0:01:26]} 10. Bd2 {[%emt 0:04:17]} Ba6 {[%emt 0:05:27]} 11. Ne4 {[%emt 0:04:56]} f5 {[%emt 0:07:51]} 12. Ng3 {[%emt 0:05:32]} O-O {[%emt 0:03:21]} 13. c3 {[%emt 0:01:35]} Bc5 {[%emt 0:03:09]} 14. Be2 {[%emt 0:00:32]} Qb6 {[%emt 0:03:24]} 15. O-O {[%emt 0:00:25]} Rad8 {[%emt 0:05:30]} 16. Bxa6 {[%emt 0:02:45]} Qxa6 {[%emt 0:00:53]} 17. Qe2 {[%emt 0:04:21]} Qxe2 {[%emt 0:01:23]} 18. Nxe2 {[%emt 0:00:02]} e5 {[%emt 0:01:56]} 19. b4 {[%emt 0:02:04]} Be7 {[%emt 0:02:32]} 20. Rfd1 {[%emt 0:01:46]} Nb6 {[%emt 0:01:31]} 21. Be3 {[%emt 0:02:49]} g5 {[%emt 0:04:47]} 22. f3 {[%emt 0:01:14]} 1/2-1/2